[Event "Live Chess"]
[Site "Chess.com"]
[Date "2023.05.20"]
[Round "-"]
[White "fretle"]
[Black "raimundklein"]
[Result "0-1"]
[WhiteElo "1834"]
[BlackElo "1607"]
[TimeControl "300"]
[EndTime "15:20:27 PDT"]
[Termination "raimundklein won by resignation"]

1. b3 {[%clk 0:04:55.6]} 1... e5 {[%clk 0:04:58.2]} 2. Bb2 {[%clk 0:04:54.2]}
2... d6 {[%clk 0:04:57.2]} 3. g3 {[%clk 0:04:50.4]} 3... Nf6 {[%clk 0:04:55.4]}
4. Bg2 {[%clk 0:04:49.8]} 4... Nc6 {[%clk 0:04:54.5]} 5. c3 {[%clk 0:04:41.5]}
5... g6 {[%clk 0:04:52.4]} 6. d4 {[%clk 0:04:38.5]} 6... exd4 {[%clk 0:04:47.8]}
7. cxd4 {[%clk 0:04:38.4]} 7... Bg7 {[%clk 0:04:40.1]} 8. Qc2 {[%clk 0:04:28.2]}
8... Bd7 {[%clk 0:04:22.3]} 9. Nd2 {[%clk 0:04:24.6]} 9... O-O {[%clk
0:04:19.6]} 10. a3 {[%clk 0:04:23]} 10... Re8 {[%clk 0:04:15.9]} 11. e3 {[%clk
0:04:21.7]} 11... Ng4 {[%clk 0:03:55.5]} 12. Ne2 {[%clk 0:04:13.2]} 12... Rb8
{[%clk 0:03:24.8]} 13. O-O {[%clk 0:04:10.6]} 13... h5 {[%clk 0:03:18.3]} 14.
Nf4 {[%clk 0:04:04]} 14... Bf5 {[%clk 0:02:59.6]} 15. e4 {[%clk 0:04:02.1]}
15... Bd7 {[%clk 0:02:49.4]} 16. d5 {[%clk 0:03:50.9]} 16... Nce5 {[%clk
0:02:44.6]} 17. Rac1 {[%clk 0:03:40.4]} 17... c5 {[%clk 0:02:27.3]} 18. dxc6
{[%clk 0:03:35.3]} 18... Bxc6 {[%clk 0:02:26.5]} 19. Rfd1 {[%clk 0:03:16.3]}
19... Qb6 {[%clk 0:02:24.3]} 20. Rf1 {[%clk 0:02:48.3]} 20... Rbd8 {[%clk
0:02:19.2]} 21. h3 {[%clk 0:02:47.4]} 21... Nh6 {[%clk 0:02:08.2]} 22. Nf3
{[%clk 0:02:35.7]} 22... Nxf3+ {[%clk 0:01:48.9]} 23. Bxf3 {[%clk 0:02:35.6]}
23... Bxb2 {[%clk 0:01:46]} 24. Qxb2 {[%clk 0:02:31.7]} 24... Bxe4 {[%clk
0:01:45.2]} 25. Bxe4 {[%clk 0:02:05.2]} 25... Rxe4 {[%clk 0:01:45.1]} 26. Qf6
{[%clk 0:01:59.5]} 26... Kh7 {[%clk 0:01:27.5]} 27. Rc3 {[%clk 0:01:44.2]} 27...
d5 {[%clk 0:01:24.9]} 28. Rfc1 {[%clk 0:01:41.1]} 28... Qxf6 {[%clk 0:01:23.3]}
0-1

[Event "Live Chess"]
[Site "Chess.com"]
[Date "2023.05.20"]
[Round "-"]
[White "SupremeTactician"]
[Black "laminaaprod"]
[Result "1-0"]
[WhiteElo "2374"]
[BlackElo "2246"]
[TimeControl "300"]
[EndTime "15:20:46 PDT"]
[Termination "SupremeTactician won on time"]

1. e4 {[%clk 0:04:57.1]} 1... e5 {[%clk 0:04:55.4]} 2. Nf3 {[%clk 0:04:55.9]}
2... Nc6 {[%clk 0:04:54.9]} 3. Nc3 {[%clk 0:04:55.5]} 3... Nf6 {[%clk 0:04:50]}
4. Bb5 {[%clk 0:04:55]} 4... Be7 {[%clk 0:04:40]} 5. O-O {[%clk 0:04:52.1]} 5...
d6 {[%clk 0:04:39.3]} 6. d4 {[%clk 0:04:51.1]} 6... exd4 {[%clk 0:04:36.9]} 7.
Nxd4 {[%clk 0:04:51]} 7... Bd7 {[%clk 0:04:36.2]} 8. Nf5 {[%clk 0:04:50.3]} 8...
Bxf5 {[%clk 0:04:34.6]} 9. exf5 {[%clk 0:04:49.5]} 9... O-O {[%clk 0:04:34.1]}
10. Bg5 {[%clk 0:04:46.4]} 10... d5 {[%clk 0:04:01.1]} 11. Bxc6 {[%clk
0:04:29.6]} 11... bxc6 {[%clk 0:03:59.7]} 12. Re1 {[%clk 0:04:25.4]} 12... Rb8
{[%clk 0:03:51.3]} 13. Rb1 {[%clk 0:04:22.3]} 13... h6 {[%clk 0:02:47.6]} 14.
Bh4 {[%clk 0:04:17.5]} 14... Rb4 {[%clk 0:02:47.1]} 15. Bg3 {[%clk 0:04:14]}
15... Bd6 {[%clk 0:02:46.4]} 16. a3 {[%clk 0:04:11.9]} 16... Rc4 {[%clk
0:02:37.6]} 17. Qd3 {[%clk 0:03:58.2]} 17... Re8 {[%clk 0:02:20]} 18. b3 {[%clk
0:03:38.9]} 18... Rg4 {[%clk 0:01:52.8]} 19. h3 {[%clk 0:03:30.1]} 19... Rg5
{[%clk 0:01:36]} 20. Rxe8+ {[%clk 0:03:27.1]} 20... Qxe8 {[%clk 0:01:34.9]} 21.
Bxd6 {[%clk 0:03:03.7]} 21... cxd6 {[%clk 0:01:17.4]} 22. Kf1 {[%clk 0:03:01.5]}
22... Qe5 {[%clk 0:01:06.8]} 23. Re1 {[%clk 0:02:51.4]} 23... Qxf5 {[%clk
0:01:03.4]} 24. Qxf5 {[%clk 0:02:51]} 24... Rxf5 {[%clk 0:01:02.6]} 25. Re7
{[%clk 0:02:50.7]} 25... Ne4 {[%clk 0:00:55.2]} 26. Nxe4 {[%clk 0:02:47.1]}
26... dxe4 {[%clk 0:00:55.1]} 27. Rxe4 {[%clk 0:02:45.8]} 27... Rc5 {[%clk
0:00:50.9]} 28. c4 {[%clk 0:02:43.6]} 28... d5 {[%clk 0:00:50.2]} 29. cxd5
{[%clk 0:02:42.8]} 29... cxd5 {[%clk 0:00:45.3]} 30. Re8+ {[%clk 0:02:41.6]}
30... Kh7 {[%clk 0:00:44]} 31. Re7 {[%clk 0:02:41]} 31... Rc1+ {[%clk
0:00:33.9]} 32. Ke2 {[%clk 0:02:39.5]} 32... Rc2+ {[%clk 0:00:33.8]} 33. Ke1
{[%clk 0:02:19.3]} 33... Rc3 {[%clk 0:00:24.9]} 34. Rxf7 {[%clk 0:02:16.1]}
34... a5 {[%clk 0:00:22]} 35. Ra7 {[%clk 0:02:13.7]} 35... Rxb3 {[%clk
0:00:20.8]} 36. Rxa5 {[%clk 0:02:13]} 36... d4 {[%clk 0:00:18.8]} 37. Rd5 {[%clk
0:02:09.2]} 37... Rxa3 {[%clk 0:00:17.8]} 38. Rxd4 {[%clk 0:02:08.3]} 38... Ra1+
{[%clk 0:00:17.7]} 39. Ke2 {[%clk 0:02:07.7]} 39... Ra2+ {[%clk 0:00:17.6]} 40.
Rd2 {[%clk 0:02:06.8]} 40... Ra3 {[%clk 0:00:17.5]} 41. Rd3 {[%clk 0:02:05.2]}
41... Ra7 {[%clk 0:00:17.4]} 42. Re3 {[%clk 0:02:04.1]} 42... Rf7 {[%clk
0:00:17.3]} 43. Re4 {[%clk 0:02:02.3]} 43... Rd7 {[%clk 0:00:16.9]} 44. Ke3
{[%clk 0:02:01.3]} 44... Ra7 {[%clk 0:00:16.6]} 45. Rd4 {[%clk 0:01:57.5]} 45...
Ra3+ {[%clk 0:00:16.5]} 46. Rd3 {[%clk 0:01:57.2]} 46... Ra6 {[%clk 0:00:16.1]}
47. g3 {[%clk 0:01:54.6]} 47... Re6+ {[%clk 0:00:16]} 48. Kf3 {[%clk 0:01:53.9]}
48... Rb6 {[%clk 0:00:15.9]} 49. Rd4 {[%clk 0:01:51]} 49... Rb5 {[%clk
0:00:15.4]} 50. h4 {[%clk 0:01:48.5]} 50... Rb6 {[%clk 0:00:15]} 51. Rd5 {[%clk
0:01:47.2]} 51... Rb2 {[%clk 0:00:14.7]} 52. Ke3 {[%clk 0:01:45.6]} 52... Rb1
{[%clk 0:00:14.3]} 53. Kf4 {[%clk 0:01:42.3]} 53... Rh1 {[%clk 0:00:14.2]} 54.
f3 {[%clk 0:01:41.1]} 54... Rf1 {[%clk 0:00:13.9]} 55. Rb5 {[%clk 0:01:38.7]}
55... Ra1 {[%clk 0:00:13.3]} 56. Rb4 {[%clk 0:01:37.4]} 56... Ra3 {[%clk
0:00:12.9]} 57. g4 {[%clk 0:01:36.2]} 57... Ra8 {[%clk 0:00:12.5]} 58. Rc4
{[%clk 0:01:34.8]} 58... Rf8+ {[%clk 0:00:12.4]} 59. Kg3 {[%clk 0:01:33.9]}
59... Re8 {[%clk 0:00:12]} 60. Rc3 {[%clk 0:01:32.7]} 60... Re1 {[%clk
0:00:11.7]} 61. Rc7 {[%clk 0:01:31.4]} 61... Re7 {[%clk 0:00:11.4]} 62. Rxe7
{[%clk 0:01:27.2]} 1-0

[Event "Live Chess"]
[Site "Chess.com"]
[Date "2023.05.20"]
[Round "-"]
[White "colourmefree"]
[Black "Brooms1989"]
[Result "0-1"]
[WhiteElo "413"]
[BlackElo "1063"]
[TimeControl "300"]
[EndTime "15:21:11 PDT"]
[Termination "Brooms1989 won by resignation"]

1. d4 {[%clk 0:04:53.3]} 1... Nf6 {[%clk 0:04:58.1]} 2. Nf3 {[%clk 0:04:51.5]}
2... g6 {[%clk 0:04:55.1]} 3. c4 {[%clk 0:04:50.1]} 3... Bg7 {[%clk 0:04:52.7]}
4. g3 {[%clk 0:04:48.2]} 4... O-O {[%clk 0:04:50.9]} 5. Bg2 {[%clk 0:04:47.2]}
5... d6 {[%clk 0:04:49.5]} 6. O-O {[%clk 0:04:45.7]} 6... Bd7 {[%clk 0:04:44.5]}
7. e3 {[%clk 0:04:38.2]} 7... Qc8 {[%clk 0:04:42.5]} 8. Nc3 {[%clk 0:04:36.7]}
8... Bh3 {[%clk 0:04:40.2]} 9. b3 {[%clk 0:04:32.1]} 9... Bxg2 {[%clk
0:04:38.3]} 10. Kxg2 {[%clk 0:04:30.7]} 10... Nbd7 {[%clk 0:04:33.7]} 11. Bb2
{[%clk 0:04:28.2]} 11... Re8 {[%clk 0:04:25]} 12. e4 {[%clk 0:04:25.9]} 12... e5
{[%clk 0:04:22.7]} 13. d5 {[%clk 0:04:16.9]} 13... c6 {[%clk 0:04:11.1]} 14. Ng5
{[%clk 0:03:50.5]} 14... h6 {[%clk 0:04:03.1]} 15. Ne6 {[%clk 0:03:43.1]} 15...
fxe6 {[%clk 0:04:01.6]} 16. dxe6 {[%clk 0:03:41.2]} 16... Rxe6 {[%clk
0:04:00.6]} 17. Na4 {[%clk 0:03:30.9]} 17... Nxe4 {[%clk 0:03:50.4]} 18. Nc3
{[%clk 0:03:20]} 18... Nxc3 {[%clk 0:03:47.8]} 19. Bxc3 {[%clk 0:03:18.8]} 19...
e4 {[%clk 0:03:43.9]} 20. Bxg7 {[%clk 0:03:15.5]} 20... Kxg7 {[%clk 0:03:43.8]}
21. Re1 {[%clk 0:03:10.6]} 21... Nf6 {[%clk 0:03:42]} 22. f3 {[%clk 0:03:03.2]}
22... exf3+ {[%clk 0:03:33.3]} 23. Kxf3 {[%clk 0:02:58.7]} 23... Rxe1 {[%clk
0:03:31.7]} 24. Qxe1 {[%clk 0:02:57.7]} 24... Qe8 {[%clk 0:03:30.8]} 25. Qc3
{[%clk 0:02:35.6]} 25... Qe5 {[%clk 0:03:25]} 26. Qxe5 {[%clk 0:01:59.5]} 26...
dxe5 {[%clk 0:03:24.9]} 27. Re1 {[%clk 0:01:57.9]} 27... e4+ {[%clk 0:03:16.2]}
28. Kf4 {[%clk 0:01:56.4]} 28... g5+ {[%clk 0:03:09.9]} 29. Ke5 {[%clk 0:01:55]}
29... Re8+ {[%clk 0:03:08.7]} 30. Kf5 {[%clk 0:01:53]} 30... Rd8 {[%clk
0:02:56.8]} 31. Ke6 {[%clk 0:01:48.9]} 31... Rd2 {[%clk 0:02:53.9]} 32. Ke7
{[%clk 0:01:44.3]} 32... Rxa2 {[%clk 0:02:52.5]} 33. Kd8 {[%clk 0:01:40.9]}
33... Rxh2 {[%clk 0:02:50.6]} 34. Kc7 {[%clk 0:01:38.7]} 34... Rh3 {[%clk
0:02:49.3]} 35. Kxb7 {[%clk 0:01:37.8]} 35... Rxg3 {[%clk 0:02:48.5]} 36. Kxc6
{[%clk 0:01:34.3]} 36... Rxb3 {[%clk 0:02:47.3]} 37. c5 {[%clk 0:01:30.5]} 37...
Rc3 {[%clk 0:02:45.7]} 38. Kd6 {[%clk 0:01:27.4]} 38... e3 {[%clk 0:02:40.8]}
39. c6 {[%clk 0:01:25.8]} 39... Ne4+ {[%clk 0:02:37]} 40. Kd7 {[%clk 0:01:20.8]}
40... Rd3+ {[%clk 0:02:27.7]} 41. Kc7 {[%clk 0:01:16.1]} 41... Rc3 {[%clk
0:02:15.1]} 42. Kb7 {[%clk 0:01:13.9]} 42... a5 {[%clk 0:02:12.9]} 43. c7 {[%clk
0:01:12.7]} 43... h5 {[%clk 0:02:09.4]} 44. c8=Q {[%clk 0:00:56.8]} 44... Rxc8
{[%clk 0:02:06]} 45. Kxc8 {[%clk 0:00:55.8]} 45... g4 {[%clk 0:02:01.8]} 46.
Rxe3 {[%clk 0:00:53.9]} 46... Nf6 {[%clk 0:02:01]} 47. Re7+ {[%clk 0:00:49.1]}
47... Kg6 {[%clk 0:01:59.8]} 48. Ra7 {[%clk 0:00:47.7]} 48... h4 {[%clk
0:01:58.7]} 49. Rxa5 {[%clk 0:00:46.5]} 49... h3 {[%clk 0:01:58]} 50. Ra2 {[%clk
0:00:42.6]} 50... g3 {[%clk 0:01:56.4]} 51. Kd8 {[%clk 0:00:34.6]} 51... g2
{[%clk 0:01:54.6]} 52. Ra1 {[%clk 0:00:32]} 52... h2 {[%clk 0:01:53.4]} 53. Ke7
{[%clk 0:00:27.7]} 53... g1=Q {[%clk 0:01:51.2]} 54. Rxg1+ {[%clk 0:00:24.5]}
54... hxg1=Q {[%clk 0:01:51.1]} 55. Ke6 {[%clk 0:00:23.3]} 0-1

[Event "Live Chess"]
[Site "Chess.com"]
[Date "2023.05.20"]
[Round "-"]
[White "Singapourfeuj"]
[Black "EdenHazard8"]
[Result "0-1"]
[WhiteElo "2227"]
[BlackElo "2057"]
[TimeControl "300"]
[EndTime "15:21:44 PDT"]
[Termination "EdenHazard8 won by resignation"]

1. d4 {[%clk 0:04:57.8]} 1... d5 {[%clk 0:04:56.2]} 2. c4 {[%clk 0:04:56.7]}
2... e6 {[%clk 0:04:53.7]} 3. Nf3 {[%clk 0:04:51.6]} 3... dxc4 {[%clk
0:04:50.8]} 4. e4 {[%clk 0:04:49.3]} 4... b5 {[%clk 0:04:48.1]} 5. a4 {[%clk
0:04:47.6]} 5... c6 {[%clk 0:04:46.2]} 6. Be2 {[%clk 0:04:42.6]} 6... Nf6 {[%clk
0:04:43.9]} 7. Nbd2 {[%clk 0:04:41.2]} 7... Bb4 {[%clk 0:04:41.8]} 8. O-O {[%clk
0:04:39.7]} 8... Bxd2 {[%clk 0:04:37.7]} 9. Qxd2 {[%clk 0:04:38.8]} 9... Nxe4
{[%clk 0:04:36]} 10. Qf4 {[%clk 0:04:37.8]} 10... Nf6 {[%clk 0:04:31.3]} 11. Ne5
{[%clk 0:04:36.7]} 11... O-O {[%clk 0:04:28.6]} 12. axb5 {[%clk 0:04:34.7]}
12... cxb5 {[%clk 0:04:27.3]} 13. Bf3 {[%clk 0:04:33.8]} 13... Nd5 {[%clk
0:04:25.6]} 14. Qg3 {[%clk 0:04:32.4]} 14... Nd7 {[%clk 0:04:22.6]} 15. Bh6
{[%clk 0:04:30.3]} 15... Qf6 {[%clk 0:04:17]} 16. Ng4 {[%clk 0:04:24.7]} 16...
Qg6 {[%clk 0:04:13.9]} 17. Be4 {[%clk 0:04:19]} 17... f5 {[%clk 0:04:10.5]} 18.
Bxd5 {[%clk 0:04:18]} 18... exd5 {[%clk 0:04:10.4]} 19. Rfe1 {[%clk 0:04:04.6]}
19... fxg4 {[%clk 0:04:02.3]} 20. Bf4 {[%clk 0:04:02.3]} 20... Nf6 {[%clk
0:04:00.8]} 21. Bd6 {[%clk 0:04:00.6]} 21... Ne4 {[%clk 0:03:58]} 22. Qe5 {[%clk
0:03:54.6]} 22... Nxd6 {[%clk 0:03:55.6]} 23. Qxd5+ {[%clk 0:03:53.1]} 23... Kh8
{[%clk 0:03:48.4]} 24. Qxa8 {[%clk 0:03:51.8]} 24... Qf5 {[%clk 0:03:39.8]} 25.
Re2 {[%clk 0:03:48.2]} 25... Bb7 {[%clk 0:03:32.4]} 26. Qxa7 {[%clk 0:03:47.2]}
26... Qd5 {[%clk 0:03:31.3]} 27. f3 {[%clk 0:03:38.4]} 27... gxf3 {[%clk
0:03:29.7]} 28. Rf2 {[%clk 0:03:37.7]} 28... h6 {[%clk 0:03:02.1]} 29. Qc5
{[%clk 0:03:35.4]} 29... Qxc5 {[%clk 0:03:00]} 30. dxc5 {[%clk 0:03:34.6]} 30...
Ne4 {[%clk 0:02:59.5]} 31. Rxf3 {[%clk 0:03:33.7]} 31... Rxf3 {[%clk 0:02:58.2]}
32. gxf3 {[%clk 0:03:32.9]} 32... Nxc5 {[%clk 0:02:57.7]} 33. Kf2 {[%clk
0:03:27]} 33... Nd3+ {[%clk 0:02:56]} 34. Ke3 {[%clk 0:03:26.2]} 34... Nxb2
{[%clk 0:02:54.8]} 35. Kd4 {[%clk 0:03:22.3]} 35... Bxf3 {[%clk 0:02:51.4]} 36.
Rb1 {[%clk 0:03:19.8]} 36... Nd1 {[%clk 0:02:45.3]} 37. Rxb5 {[%clk 0:03:17.6]}
37... c3 {[%clk 0:02:44.6]} 38. Rc5 {[%clk 0:03:15.9]} 38... Kh7 {[%clk
0:02:32.5]} 39. h4 {[%clk 0:03:14.5]} 39... h5 {[%clk 0:02:29.4]} 40. Kd3 {[%clk
0:03:09.3]} 40... Bg4 {[%clk 0:02:25.5]} 41. Kc2 {[%clk 0:03:04.3]} 41... g6
{[%clk 0:02:17.6]} 42. Rc7+ {[%clk 0:02:59.5]} 42... Kh6 {[%clk 0:02:16.5]} 43.
Rc5 {[%clk 0:02:54.6]} 43... Ne3+ {[%clk 0:02:07.7]} 44. Kxc3 {[%clk 0:02:52.8]}
44... Ng2 {[%clk 0:02:07.6]} 45. Kd4 {[%clk 0:02:50.4]} 45... Nxh4 {[%clk
0:02:06.4]} 46. Ke3 {[%clk 0:02:48.9]} 46... Nf5+ {[%clk 0:02:05]} 47. Kf4
{[%clk 0:02:47.7]} 47... g5+ {[%clk 0:02:03.8]} 48. Ke5 {[%clk 0:02:46]} 48...
h4 {[%clk 0:02:00.3]} 49. Rc6+ {[%clk 0:02:44.1]} 49... Kh5 {[%clk 0:01:58.9]}
50. Rc8 {[%clk 0:02:43.2]} 50... Nh6 {[%clk 0:01:56.7]} 51. Rh8 {[%clk
0:02:37.9]} 51... h3 {[%clk 0:01:55.3]} 52. Kf6 {[%clk 0:02:37.1]} 52... h2
{[%clk 0:01:41.7]} 53. Kg7 {[%clk 0:02:34.2]} 53... Bh3 {[%clk 0:01:40.8]} 54.
Rxh6+ {[%clk 0:02:31.9]} 54... Kg4 {[%clk 0:01:39.8]} 55. Rg6 {[%clk 0:02:28.1]}
55... h1=Q {[%clk 0:01:38.2]} 56. Rxg5+ {[%clk 0:02:27.5]} 56... Kf4 {[%clk
0:01:37.7]} 0-1

[Event "Live Chess"]
[Site "Chess.com"]
[Date "2023.05.20"]
[Round "-"]
[White "f4nomore"]
[Black "JbbChess726"]
[Result "1-0"]
[WhiteElo "1416"]
[BlackElo "416"]
[TimeControl "300"]
[EndTime "15:22:04 PDT"]
[Termination "f4nomore won by resignation"]

1. d4 {[%clk 0:04:56.7]} 1... Nf6 {[%clk 0:04:54.4]} 2. Bg5 {[%clk 0:04:54.5]}
2... h6 {[%clk 0:04:52.4]} 3. Bxf6 {[%clk 0:04:53.1]} 3... gxf6 {[%clk
0:04:50.5]} 4. Nf3 {[%clk 0:04:51.8]} 4... Nc6 {[%clk 0:04:48]} 5. e3 {[%clk
0:04:50.8]} 5... e5 {[%clk 0:04:45.8]} 6. dxe5 {[%clk 0:04:48.8]} 6... fxe5
{[%clk 0:04:45.1]} 7. Bb5 {[%clk 0:04:46]} 7... b6 {[%clk 0:04:42.7]} 8. Bxc6
{[%clk 0:04:44.6]} 8... dxc6 {[%clk 0:04:41.4]} 9. Nxe5 {[%clk 0:04:41.8]} 9...
Qxd1+ {[%clk 0:04:40.1]} 10. Kxd1 {[%clk 0:04:39.7]} 10... Bd6 {[%clk
0:04:39.1]} 11. Nxc6 {[%clk 0:04:35]} 11... Bb7 {[%clk 0:04:37.7]} 12. Nd4
{[%clk 0:04:30.8]} 12... Bxg2 {[%clk 0:04:35.8]} 13. Rg1 {[%clk 0:04:22.8]}
13... Be4 {[%clk 0:04:29.9]} 14. c3 {[%clk 0:04:17.6]} 14... c5 {[%clk
0:04:27.7]} 15. Nb5 {[%clk 0:04:13.6]} 15... Bf3+ {[%clk 0:04:24.7]} 16. Kc2
{[%clk 0:04:08.9]} 16... Be4+ {[%clk 0:04:21.2]} 17. Kb3 {[%clk 0:04:06.4]}
17... Bd5+ {[%clk 0:04:11.3]} 18. c4 {[%clk 0:04:05]} 18... Bc6 {[%clk
0:04:01.4]} 19. Nxd6+ {[%clk 0:04:02.9]} 19... Kd8 {[%clk 0:03:59.9]} 20. Nxf7+
{[%clk 0:04:00.9]} 20... Ke8 {[%clk 0:03:58.6]} 21. Nxh8 {[%clk 0:03:59.2]}
21... a5 {[%clk 0:03:57.7]} 22. Rg8+ {[%clk 0:03:55.1]} 22... Ke7 {[%clk
0:03:56]} 23. Rxa8 {[%clk 0:03:53]} 23... a4+ {[%clk 0:03:55.3]} 24. Rxa4 {[%clk
0:03:45.7]} 1-0

[Event "Live Chess"]
[Site "Chess.com"]
[Date "2023.05.20"]
[Round "-"]
[White "Alan_Richardson"]
[Black "McSlash1"]
[Result "1/2-1/2"]
[WhiteElo "1697"]
[BlackElo "2007"]
[TimeControl "300"]
[EndTime "15:22:18 PDT"]
[Termination "Game drawn by repetition"]

1. d4 {[%clk 0:04:58.6]} 1... Nf6 {[%clk 0:04:58.9]} 2. Bf4 {[%clk 0:04:54]}
2... g6 {[%clk 0:04:57.9]} 3. Nf3 {[%clk 0:04:51.9]} 3... Bg7 {[%clk 0:04:53.9]}
4. c3 {[%clk 0:04:50.3]} 4... O-O {[%clk 0:04:53.5]} 5. Nbd2 {[%clk 0:04:48.7]}
5... d5 {[%clk 0:04:53.4]} 6. h3 {[%clk 0:04:41.9]} 6... c5 {[%clk 0:04:52.3]}
7. e3 {[%clk 0:04:39.9]} 7... Nc6 {[%clk 0:04:50.5]} 8. Be2 {[%clk 0:04:37]}
8... Qb6 {[%clk 0:04:49.7]} 9. Qc1 {[%clk 0:04:21.1]} 9... cxd4 {[%clk
0:04:45.3]} 10. exd4 {[%clk 0:04:17.7]} 10... Bf5 {[%clk 0:04:44.9]} 11. O-O
{[%clk 0:04:15.3]} 11... Rac8 {[%clk 0:04:44.2]} 12. Nb3 {[%clk 0:04:05.8]}
12... Ne4 {[%clk 0:04:42.7]} 13. Bd3 {[%clk 0:03:41.6]} 13... a5 {[%clk
0:04:40.8]} 14. Qb1 {[%clk 0:03:15.6]} 14... a4 {[%clk 0:04:35.3]} 15. Nbd2
{[%clk 0:03:14]} 15... Nxd2 {[%clk 0:04:32.2]} 16. Nxd2 {[%clk 0:03:05.3]} 16...
Be6 {[%clk 0:04:24.2]} 17. Nf3 {[%clk 0:02:56.6]} 17... Na5 {[%clk 0:04:18.4]}
18. Qc2 {[%clk 0:02:47.7]} 18... Bd7 {[%clk 0:04:14.4]} 19. Ne5 {[%clk
0:02:41.9]} 19... Be8 {[%clk 0:04:11]} 20. Rfe1 {[%clk 0:02:00]} 20... Nc4
{[%clk 0:04:08.8]} 21. Nxc4 {[%clk 0:01:49.5]} 21... dxc4 {[%clk 0:04:08.7]} 22.
Be4 {[%clk 0:01:47.9]} 22... f6 {[%clk 0:04:04.3]} 23. Bd5+ {[%clk 0:01:41.2]}
23... Bf7 {[%clk 0:04:02]} 24. Bxf7+ {[%clk 0:01:25.7]} 24... Rxf7 {[%clk
0:04:01.9]} 25. Qxa4 {[%clk 0:01:15.4]} 25... Rcf8 {[%clk 0:03:59]} 26. Qxc4
{[%clk 0:01:10.1]} 26... e5 {[%clk 0:03:58]} 27. Be3 {[%clk 0:01:01.7]} 27...
Qxb2 {[%clk 0:03:50.3]} 28. Rab1 {[%clk 0:00:56.8]} 28... Qc2 {[%clk 0:03:44.4]}
29. Rxb7 {[%clk 0:00:50.4]} 29... exd4 {[%clk 0:03:36.3]} 30. Bxd4 {[%clk
0:00:48.3]} 30... f5 {[%clk 0:03:19.7]} 31. Rxf7 {[%clk 0:00:28]} 31... Rxf7
{[%clk 0:03:15.9]} 32. Re8+ {[%clk 0:00:22.8]} 32... Bf8 {[%clk 0:03:14.1]} 33.
Rxf8+ {[%clk 0:00:16.5]} 33... Kxf8 {[%clk 0:03:10.1]} 34. Qc8+ {[%clk
0:00:15.1]} 34... Ke7 {[%clk 0:03:08.8]} 35. Qc7+ {[%clk 0:00:11.7]} 35... Ke6
{[%clk 0:03:05.6]} 36. Qc6+ {[%clk 0:00:08.2]} 36... Ke7 {[%clk 0:03:03.6]} 37.
Qc7+ {[%clk 0:00:07.2]} 37... Ke8 {[%clk 0:03:03]} 38. Qc8+ {[%clk 0:00:06.2]}
38... Ke7 {[%clk 0:03:02.1]} 39. Qc7+ {[%clk 0:00:05.4]} 1/2-1/2

[Event "Live Chess"]
[Site "Chess.com"]
[Date "2023.05.20"]
[Round "-"]
[White "CeladonFish"]
[Black "Doge_Dandolo"]
[Result "0-1"]
[WhiteElo "1167"]
[BlackElo "2029"]
[TimeControl "300"]
[EndTime "15:22:19 PDT"]
[Termination "Doge_Dandolo won by resignation"]

1. d4 {[%clk 0:04:59.3]} 1... d5 {[%clk 0:04:58.3]} 2. c4 {[%clk 0:04:58.6]}
2... c6 {[%clk 0:04:56.5]} 3. Nc3 {[%clk 0:04:58.1]} 3... Nf6 {[%clk 0:04:56]}
4. Bf4 {[%clk 0:04:56.6]} 4... a6 {[%clk 0:04:55]} 5. e3 {[%clk 0:04:55.8]} 5...
Bf5 {[%clk 0:04:53.9]} 6. Nf3 {[%clk 0:04:55.1]} 6... e6 {[%clk 0:04:52.8]} 7.
Ne5 {[%clk 0:04:52]} 7... Nbd7 {[%clk 0:04:51.3]} 8. h3 {[%clk 0:04:49.8]} 8...
Nxe5 {[%clk 0:04:49.3]} 9. dxe5 {[%clk 0:04:49.3]} 9... Ne4 {[%clk 0:04:47.7]}
10. Nxe4 {[%clk 0:04:40.3]} 10... Bxe4 {[%clk 0:04:46.6]} 11. f3 {[%clk
0:04:38.7]} 11... Bg6 {[%clk 0:04:44.6]} 12. g4 {[%clk 0:04:37.8]} 12... h5
{[%clk 0:04:40.7]} 13. Qb3 {[%clk 0:04:33.3]} 13... Qc7 {[%clk 0:04:36.9]} 14.
Bg3 {[%clk 0:04:24.5]} 14... hxg4 {[%clk 0:04:35]} 15. fxg4 {[%clk 0:04:22.5]}
15... Be4 {[%clk 0:04:33.7]} 16. Rh2 {[%clk 0:04:16]} 16... Bc5 {[%clk
0:04:30.7]} 17. Bf4 {[%clk 0:04:13.5]} 17... Be7 {[%clk 0:04:26.1]} 18. cxd5
{[%clk 0:04:12.7]} 18... Bxd5 {[%clk 0:04:24.4]} 19. Qc3 {[%clk 0:04:07.2]}
19... g5 {[%clk 0:04:22.2]} 20. Bg3 {[%clk 0:04:04.6]} 20... Qb6 {[%clk
0:04:20.7]} 21. Qd4 {[%clk 0:04:01.9]} 21... Bc5 {[%clk 0:04:16.2]} 22. Qc3
{[%clk 0:03:54.7]} 22... Bb4 {[%clk 0:04:14.8]} 0-1

[Event "Live Chess"]
[Site "Chess.com"]
[Date "2023.05.20"]
[Round "-"]
[White "Jo1ts"]
[Black "MrBlond89"]
[Result "0-1"]
[WhiteElo "771"]
[BlackElo "1371"]
[TimeControl "300"]
[EndTime "15:22:21 PDT"]
[Termination "MrBlond89 won by resignation"]

1. d4 {[%clk 0:04:58.8]} 1... d5 {[%clk 0:04:59]} 2. Bf4 {[%clk 0:04:58.1]} 2...
c5 {[%clk 0:04:56.6]} 3. Nf3 {[%clk 0:04:57.5]} 3... cxd4 {[%clk 0:04:51.8]} 4.
Nxd4 {[%clk 0:04:57.4]} 4... f6 {[%clk 0:04:48.3]} 5. Nc3 {[%clk 0:04:55.4]}
5... e5 {[%clk 0:04:47.1]} 6. Nf3 {[%clk 0:04:46.3]} 6... d4 {[%clk 0:04:37.8]}
7. Nb5 {[%clk 0:04:37]} 7... Qa5+ {[%clk 0:04:31.2]} 8. c3 {[%clk 0:04:30.6]}
8... exf4 {[%clk 0:04:26.2]} 9. Nbxd4 {[%clk 0:04:25.2]} 9... Nc6 {[%clk
0:04:11.7]} 10. Nxc6 {[%clk 0:04:15.2]} 10... bxc6 {[%clk 0:04:10.4]} 11. Qd4
{[%clk 0:04:01.8]} 11... Bc5 {[%clk 0:04:04.3]} 12. Qe4+ {[%clk 0:03:52.6]}
12... Ne7 {[%clk 0:04:01.3]} 13. Qxc6+ {[%clk 0:03:45.7]} 13... Nxc6 {[%clk
0:03:56.3]} 0-1